bitfinex-derivatives/quotes_BTCF0:USTF0_20250127
["timestamp","ask_amount","ask_price","bid_price","bid_amount"]
[1737973394196,0.201512,99294.0,99292.0,0.00015103]
[1737973394404,0.4344,99293.0,99292.0,0.00015103]
[1737973396005,0.4354,99293.0,99292.0,0.00015103]
[1737973396500,0.201532,99284.0,99272.0,0.30077285]
[1737973396701,0.562332,99284.0,99272.0,0.30077285]
[1737973397400,0.562332,99284.0,99275.0,0.20155]
[1737973397987,0.563332,99284.0,99275.0,0.20155]
[1737973398694,0.563332,99284.0,99275.0,0.23715]
[1737973399891,0.563332,99284.0,99283.0,0.18146371]
[1737973402999,0.563332,99284.0,99283.0,0.001]
[1737973407207,0.202532,99284.0,99283.0,0.001]
[1737973409001,0.001,99284.0,99283.0,0.001]
[1737973409500,0.001,99284.0,99283.0,0.0384]
[1737973410296,0.001,99284.0,99283.0,0.001]
[1737973410707,0.038,99284.0,99283.0,0.001]
[1737973411707,0.001,99284.0,99283.0,0.001]
[1737973413003,0.001,99284.0,99283.0,0.3618]
[1737973414123,0.001,99284.0,99283.0,0.37178024]
[1737973415605,0.03121634,99284.0,99283.0,0.37178024]
[1737973418118,0.03121634,99284.0,99283.0,0.65731354]
[1737973418515,0.3608,99310.0,99283.0,0.65731354]
[1737973418719,0.201485,99308.0,99306.0,0.201487]
[1737973420220,0.201493,99304.0,99301.0,0.1112]
[1737973420417,0.201493,99304.0,99302.0,0.201495]
[1737973421417,0.00015078,99311.0,99306.0,0.201486]
[1737973421621,0.201482,99309.0,99306.0,0.201486]
[1737973421815,0.201482,99309.0,99306.0,0.38231649]
[1737973422432,0.201482,99309.0,99306.0,0.18083049]
[1737973422723,0.201482,99309.0,99307.0,0.201484]
[1737973422923,0.201485,99307.0,99306.0,0.18083049]
[1737973424320,0.203485,99307.0,99306.0,0.18083049]
[1737973424512,0.203485,99307.0,99306.0,0.18183049]
[1737973426325,0.002,99307.0,99306.0,0.18183049]
[1737973426529,0.002,99307.0,99306.0,0.001]
[1737973426827,0.1204769,99332.0,99313.0,0.24781034]
[1737973427033,0.14977112,99340.0,99331.0,0.3608]
[1737973427219,0.14977112,99340.0,99332.0,0.0372]
[1737973427424,0.201403,99348.0,99342.0,0.201414]
[1737973427619,0.201405,99347.0,99342.0,0.201414]
[1737973427829,0.04727626,99351.0,99342.0,0.201414]
[1737973428025,0.201408,99346.0,99342.0,0.201414]
[1737973428619,0.201408,99346.0,99342.0,0.17120465]
[1737973429323,0.201408,99346.0,99342.0,0.17220465]
[1737973431535,0.201408,99346.0,99342.0,0.17120465]
[1737973436026,0.01017626,99351.0,99341.0,0.3608]
[1737973436226,0.3608,99347.0,99336.0,0.12390517]
[1737973436425,0.037,99346.0,99336.0,0.12390517]
[1737973437433,0.201419,99340.0,99336.0,0.12390517]
[1737973439536,0.201419,99340.0,99336.0,0.12490517]
[1737973439940,0.201422,99338.0,99336.0,0.001]
[1737973440136,0.0766,99337.0,99336.0,0.001]
[1737973441046,0.201427,99336.0,99335.0,0.00015103]
[1737973443044,0.201427,99336.0,99335.0,0.00115103]
[1737973443443,0.21164216,99336.0,99335.0,0.00015103]
[1737973443635,0.21164216,99336.0,99323.0,0.18039677]
[1737973443636,0.201451,99324.0,99323.0,0.18039677]
[1737973444752,0.201451,99324.0,99323.0,7.7e-07]
[1737973445036,0.4566,99324.0,99285.0,0.4220458]
[1737973445244,0.562295,99302.0,99285.0,0.4220458]
[1737973445639,0.201506,99297.0,99296.0,0.36079355]
[1737973448141,0.21175346,99297.0,99296.0,0.36079355]
[1737973449645,0.21175346,99297.0,99287.0,0.00015103]
[1737973449646,0.201524,99288.0,99287.0,0.00015103]
[1737973450845,0.201524,99288.0,99287.0,0.00115103]
[1737973455042,0.201524,99288.0,99287.0,1e-08]
[1737973455246,0.201564,99269.0,99259.0,0.201581]
[1737973456444,0.201564,99269.0,99267.0,0.00251102]
[1737973457345,0.3608,99268.0,99267.0,0.00251102]
[1737973457556,0.3608,99268.0,99267.0,0.001]
[1737973458140,0.3608,99268.0,99237.0,0.0773]
[1737973458356,0.3608,99241.0,99225.0,0.0373]
[1737973458652,0.201666,99218.0,99216.0,0.36454511]
[1737973458836,0.201666,99218.0,99216.0,0.36342511]
[1737973459036,0.201666,99218.0,99216.0,0.36230511]
[1737973459241,0.201666,99218.0,99216.0,0.36079355]
[1737973459448,0.201686,99208.0,99207.0,0.00015118]
[1737973459648,0.562486,99208.0,99207.0,0.00015118]
[1737973460740,0.562486,99208.0,99207.0,0.00615118]
[1737973461653,0.201686,99208.0,99207.0,0.00615118]
[1737973463145,0.37096176,99219.0,99207.0,0.00615118]
[1737973463347,0.201666,99218.0,99212.0,0.201677]
[1737973464249,0.201672,99216.0,99207.0,0.00615118]
[1737973464450,0.201672,99216.0,99207.0,0.00315118]
[1737973464652,0.201672,99216.0,99208.0,0.201685]
[1737973465356,0.201674,99215.0,99208.0,0.201685]
[1737973465552,0.3608,99219.0,99210.0,0.201681]
[1737973465760,0.562465,99219.0,99212.0,0.001]
[1737973465947,0.201668,99218.0,99212.0,0.001]
[1737973466454,0.201668,99218.0,99210.0,0.201681]
[1737973467260,0.201673,99215.0,99212.0,0.001]
[1737973467954,0.201676,99213.0,99212.0,0.001]
[1737973468153,0.3608,99219.0,99212.0,0.001]
[1737973468655,0.201673,99215.0,99212.0,0.001]
[1737973469155,0.201673,99215.0,99211.0,0.20168]
[1737973470055,0.201673,99215.0,99212.0,0.002]
[1737973470456,0.3608,99219.0,99212.0,0.002]
[1737973470757,0.3608,99219.0,99207.0,0.00015118]
[1737973470758,0.3608,99219.0,99213.0,0.0385]
[1737973471550,0.3608,99219.0,99217.0,0.201667]
[1737973471751,0.3608,99219.0,99218.0,0.0367]
[1737973472152,0.562464,99219.0,99218.0,0.0367]
[1737973473255,0.562464,99219.0,99218.0,0.0377]
[1737973474565,0.562464,99219.0,99218.0,0.001]
[1737973479673,0.57268852,99219.0,99218.0,0.001]
[1737973480176,0.201686,99208.0,99200.0,0.1]
[1737973480473,0.562486,99208.0,99200.0,0.1]
[1737973481974,0.562486,99208.0,99207.0,0.00315118]
[1737973482867,0.562486,99208.0,99207.0,0.00615118]
[1737973484178,0.201686,99208.0,99207.0,0.00615118]
[1737973486377,0.201701,99201.0,99200.0,0.1]
[1737973486580,0.562501,99201.0,99200.0,0.1]
[1737973487579,0.3608,99201.0,99191.0,0.00010096]
[1737973487879,0.562519,99192.0,99191.0,0.00010096]
[1737973489079,0.562519,99192.0,99191.0,0.00210096]
[1737973489875,0.562519,99192.0,99191.0,0.00510096]
[1737973497786,0.562519,99192.0,99191.0,0.00410096]
[1737973498385,0.563519,99192.0,99191.0,0.00110096]
[1737973500591,0.001,99192.0,99191.0,0.00110096]
[1737973501488,0.15049554,99205.0,99204.0,0.201695]
[1737973501694,0.15049554,99205.0,99204.0,0.562495]
[1737973501896,0.15049554,99205.0,99191.0,0.36302096]
[1737973502091,0.15049554,99205.0,99191.0,0.36190096]
[1737973502092,0.201717,99193.0,99191.0,0.36190096]
[1737973502291,0.201717,99193.0,99191.0,0.00110096]
[1737973502790,0.201717,99193.0,99191.0,0.00010096]
[1737973503786,0.201717,99193.0,99191.0,0.00110096]
[1737973504592,0.201717,99193.0,99191.0,0.00210096]
[1737973505389,0.3608,99192.0,99191.0,0.00210096]
[1737973507199,0.3618,99192.0,99191.0,0.00110096]
[1737973511902,0.36161987,99192.0,99191.0,0.00110096]
[1737973529414,0.0768,99204.0,99191.0,0.36190096]
[1737973529718,0.00015118,99206.0,99205.0,0.201693]
[1737973529914,0.201649,99227.0,99205.0,0.04184842]
[1737973530121,0.0397,99229.0,99213.0,0.3608]
[1737973530326,0.0397,99229.0,99222.0,0.3608]
[1737973530616,0.0397,99229.0,99227.0,0.201647]
[1737973530923,0.241344,99229.0,99227.0,0.201647]
[1737973531114,0.0397,99229.0,99218.0,0.00015118]
[1737973531318,0.3608,99219.0,99185.0,0.11044]
[1737973531518,0.201729,99187.0,99186.0,0.07633516]
[1737973532414,0.21173229,99187.0,99186.0,0.07633516]
[1737973532613,0.21173229,99187.0,99186.0,0.04304022]
[1737973533106,0.01000329,99187.0,99183.0,0.24155878]
[1737973533309,0.201735,99184.0,99183.0,0.24155878]
[1737973533810,0.04995173,99190.0,99186.0,0.001]
[1737973534414,0.04995173,99190.0,99178.0,0.3608]
[1737973534612,0.201733,99186.0,99183.0,0.002]
[1737973535316,0.201733,99186.0,99183.0,0.001]
[1737973535713,0.04995173,99190.0,99178.0,0.3608]
[1737973536020,0.201741,99182.0,99178.0,0.3608]
[1737973536723,0.04995173,99190.0,99178.0,0.3608]
[1737973536911,0.201747,99178.0,99177.0,0.3952717]
[1737973537221,0.201747,99178.0,99177.0,0.00010096]
[1737973538811,0.201747,99178.0,99177.0,0.00210096]
[1737973539223,0.201747,99178.0,99177.0,0.00510096]
[1737973540925,0.21206975,99178.0,99177.0,0.00510096]
[1737973541427,0.57286975,99178.0,99177.0,0.00510096]
[1737973541626,0.57286975,99178.0,99177.0,0.00010096]
[1737973541926,0.57386975,99178.0,99177.0,0.00110096]
[1737973545928,0.37212275,99178.0,99150.0,0.36548546]
[1737973546131,0.562583,99161.0,99150.0,0.36548546]
[1737973547133,0.201785,99160.0,99150.0,0.57128946]
[1737973547534,0.3608,99161.0,99150.0,0.24558029]
[1737973547725,0.12390517,99160.0,99150.0,0.24558029]
[1737973547930,0.201802,99152.0,99150.0,0.24558029]
[1737973548237,0.201802,99152.0,99150.0,0.25258029]
[1737973549526,0.201802,99152.0,99150.0,0.25058029]
[1737973550131,0.201802,99152.0,99150.0,0.009]
[1737973550338,0.0409,99151.0,99150.0,0.009]
[1737973551032,0.0409,99151.0,99150.0,0.008]
[1737973551729,0.201802,99152.0,99150.0,0.008]
[1737973551933,0.201788,99158.0,99150.0,0.008]
[1737973552121,0.201788,99158.0,99150.0,0.206804]
[1737973552432,0.201794,99155.0,99150.0,0.209804]
[1737973552931,0.201802,99152.0,99150.0,0.008]
[1737973554732,0.201802,99152.0,99150.0,0.005]
[1737973554928,0.201802,99152.0,99150.0,0.008]
[1737973555433,0.201802,99152.0,99150.0,0.003]
[1737973555633,0.201802,99152.0,99150.0,0.005]
[1737973555933,0.201802,99152.0,99150.0,0.008]
[1737973558433,0.201802,99152.0,99150.0,0.209804]
[1737973561440,0.201802,99152.0,99150.0,0.008]
[1737973562035,0.3608,99151.0,99150.0,0.008]
[1737973563328,0.201802,99152.0,99150.0,0.008]
[1737973564741,0.201802,99152.0,99150.0,0.005]
[1737973564931,0.201802,99152.0,99150.0,0.008]
[1737973565634,0.201802,99151.0,99150.0,0.002]
[1737973567040,0.12390517,99170.0,99150.0,0.002]
[1737973567041,0.32205155,99171.0,99150.0,0.3628]
[1737973567241,0.12028955,99171.0,99163.0,0.201777]
[1737973567432,0.12028955,99171.0,99164.0,0.07149927]
[1737973568238,0.00015126,99165.0,99164.0,0.07149927]
[1737973568440,0.00015126,99165.0,99164.0,0.0382]
[1737973568646,0.12028955,99170.0,99164.0,0.3382]
[1737973568943,0.15036194,99180.0,99179.0,0.201745]
[1737973569144,0.0768,99198.0,99190.0,0.201723]
[1737973569338,0.201709,99197.0,99190.0,0.24380695]
[1737973569546,0.0768,99198.0,99187.0,0.3608]
[1737973569741,0.201739,99182.0,99181.0,0.3608]
[1737973569944,0.201739,99182.0,99181.0,0.40288656]
[1737973570344,0.201739,99182.0,99181.0,0.3608]
[1737973570543,0.201743,99180.0,99179.0,0.00015126]
[1737973571647,0.562543,99180.0,99179.0,0.00015126]
[1737973571843,0.201764,99170.0,99169.0,0.3608]
[1737973573249,0.201772,99166.0,99165.0,0.00151254]
[1737973574535,0.0395,99169.0,99165.0,0.00151254]
[1737973574735,0.201757,99174.0,99169.0,0.201766]
[1737973575543,0.0339,99180.0,99169.0,0.201766]
[1737973575736,0.201758,99173.0,99169.0,0.201766]
[1737973576147,0.201768,99168.0,99167.0,0.3608]
[1737973576349,0.201768,99168.0,99166.0,0.0358]
[1737973576547,0.001,99174.0,99166.0,0.0358]
[1737973577149,0.001,99174.0,99172.0,0.18114379]
[1737973577348,0.001,99174.0,99173.0,0.3608]
[1737973577757,0.001,99174.0,99173.0,0.40263301]
[1737973577953,0.001,99174.0,99173.0,0.3608]
[1737973578154,0.001,99174.0,99173.0,0.40263155]
[1737973578357,0.001,99174.0,99173.0,0.3608]
[1737973578555,0.09024981,99188.0,99173.0,0.4025654]
[1737973578753,0.09024981,99188.0,99187.0,0.201729]
[1737973578954,0.09024981,99188.0,99187.0,0.24349349]
[1737973579847,0.09024981,99188.0,99187.0,0.201729]
[1737973580061,0.09024981,99188.0,99182.0,0.3608]
[1737973580256,0.201745,99179.0,99178.0,0.00015126]
[1737973580457,0.562545,99179.0,99178.0,0.00015126]
[1737973580870,0.562545,99179.0,99178.0,0.30212662]
[1737973582463,0.563545,99179.0,99178.0,0.30212662]
[1737973583471,0.562545,99179.0,99178.0,0.30212662]
[1737973584258,1.081645,99179.0,99178.0,0.30212662]
[1737973584571,0.781645,99179.0,99178.0,0.30212662]
[1737973586467,0.781645,99179.0,99178.0,0.00015126]
[1737973587872,0.201788,99158.0,99156.0,0.18099175]
[1737973590176,0.201788,99158.0,99154.0,0.18099175]
[1737973591364,0.21209918,99158.0,99154.0,0.18099175]
[1737973597983,0.21209918,99158.0,99145.0,0.0362]
[1737973597984,0.201788,99158.0,99151.0,0.18099175]
[1737973602083,0.3608,99159.0,99150.0,0.18099175]
[1737973602280,0.3608,99159.0,99157.0,0.234588]
[1737973602585,0.00015126,99167.0,99161.0,0.201782]
[1737973602887,0.00015126,99167.0,99162.0,0.201779]
[1737973603089,0.201773,99166.0,99158.0,0.0343]
[1737973603288,0.201773,99166.0,99162.0,0.00170133]
[1737973603879,0.201774,99165.0,99162.0,0.00170133]
[1737973604279,0.201778,99163.0,99162.0,0.00170133]
[1737973604484,0.201776,99164.0,99163.0,0.00170133]
[1737973606088,0.201776,99164.0,99163.0,0.00270133]
[1737973606392,0.201776,99164.0,99163.0,0.00370133]
[1737973611194,0.00015126,99167.0,99163.0,0.00370133]
[1737973611495,0.00015126,99167.0,99165.0,0.00170133]
[1737973611890,0.00056001,99170.0,99169.0,0.201766]
[1737973612086,0.18019012,99187.0,99167.0,0.3608]
[1737973612388,0.12539012,99187.0,99185.0,0.201732]
[1737973612595,0.12539012,99187.0,99186.0,0.0697]
[1737973613094,0.12539012,99187.0,99186.0,0.0348]
[1737973613291,0.12639012,99187.0,99186.0,0.0348]
[1737973613481,0.48719012,99187.0,99186.0,0.00170133]
[1737973613803,0.201747,99178.0,99177.0,0.00015126]
[1737973613981,0.562547,99178.0,99177.0,0.00015126]
[1737973615088,0.781647,99178.0,99177.0,0.00015126]
[1737973615596,0.781647,99178.0,99177.0,0.18132488]
[1737973617690,0.81189564,99178.0,99177.0,0.18132488]
[1737973619399,0.81189564,99178.0,99177.0,0.00015126]
[1737973624404,0.59279564,99178.0,99177.0,0.00015126]
[1737973636100,0.81189564,99178.0,99177.0,0.00015126]
[1737973636908,0.201794,99156.0,99154.0,0.18117362]
[1737973638909,0.201794,99156.0,99154.0,0.18217362]
[1737973639311,0.201794,99156.0,99154.0,0.001]
[1737973641508,0.00015126,99165.0,99156.0,0.201791]
[1737973641710,0.201783,99161.0,99156.0,0.201791]
[1737973642012,0.201784,99160.0,99156.0,0.201791]
[1737973642605,0.201784,99160.0,99158.0,0.201788]
[1737973645303,0.201784,99160.0,99158.0,0.202788]
[1737973645814,0.00015126,99165.0,99162.0,0.201778]
[1737973646015,0.201776,99164.0,99162.0,0.201778]
[1737973646613,0.201776,99164.0,99158.0,0.001]
[1737973646614,0.201786,99159.0,99158.0,0.001]
[1737973647316,0.201786,99159.0,99157.0,0.201789]
[1737973647712,0.00015126,99165.0,99156.0,0.30197536]
[1737973648109,0.201789,99158.0,99156.0,0.30197536]
[1737973650517,0.201789,99158.0,99154.0,0.563876]
[1737973650712,0.201789,99158.0,99154.0,0.562596]
[1737973651619,0.01002992,99164.0,99154.0,0.3608]
[1737973651918,0.201793,99156.0,99154.0,0.3608]
[1737973652310,0.201793,99156.0,99154.0,0.562595]
[1737973652819,0.201793,99156.0,99154.0,0.563595]
[1737973653518,0.201793,99156.0,99154.0,0.562595]
[1737973653719,0.201793,99156.0,99154.0,0.563595]
[1737973657519,0.201793,99156.0,99154.0,0.86557036]
[1737973658724,0.201793,99156.0,99154.0,0.66377536]
[1737973660121,0.201793,99156.0,99154.0,0.30297536]
[1737973661326,0.201793,99156.0,99155.0,0.30197536]
[1737973662619,0.201793,99156.0,99155.0,0.30297536]
[1737973664625,0.201793,99156.0,99155.0,0.001]
[1737973668616,0.09091659,99163.0,99155.0,0.001]
[1737973668823,0.09039658,99163.0,99162.0,0.20178]
[1737973669230,0.29217458,99163.0,99162.0,0.20178]
[1737973669433,0.201786,99159.0,99158.0,0.3608]
[1737973672028,0.201786,99159.0,99158.0,0.3618]
[1737973672234,0.201786,99159.0,99158.0,0.3628]
[1737973681346,0.562586,99159.0,99158.0,0.002]
[1737973683445,0.201786,99159.0,99158.0,0.002]
[1737973683640,0.00015126,99165.0,99158.0,0.002]
[1737973683838,0.201779,99163.0,99158.0,0.002]
[1737973684346,0.201781,99162.0,99158.0,0.002]
[1737973684542,0.201786,99160.0,99158.0,0.002]
[1737973684843,0.201786,99160.0,99157.0,0.3025061]
[1737973685143,0.32231477,99160.0,99156.0,0.3608]
[1737973685844,0.32231477,99160.0,99158.0,0.001]
[1737973687145,0.12052877,99160.0,99158.0,0.001]
[1737973687639,0.12052877,99160.0,99158.0,0.201787]
[1737973688246,0.32231277,99160.0,99158.0,0.201787]
[1737973688437,0.32231277,99160.0,99158.0,0.202787]
[1737973689139,0.00015126,99165.0,99158.0,0.001]
[1737973689340,0.00015126,99165.0,99159.0,0.0324]
[1737973689544,0.20192626,99165.0,99163.0,0.201777]
[1737973690637,0.00015126,99165.0,99164.0,0.3608]
[1737973691846,0.00015126,99165.0,99164.0,0.3618]
[1737973692947,0.00015126,99165.0,99164.0,0.3628]
[1737973695538,0.00015126,99165.0,99164.0,0.002]
[1737973695743,0.06555126,99165.0,99164.0,0.002]
[1737973697954,0.07582843,99165.0,99164.0,0.002]
[1737973700545,0.00015126,99165.0,99164.0,0.001]
[1737973700759,0.00015126,99165.0,99164.0,0.002]
[1737973701249,0.201788,99158.0,99157.0,0.3025061]
[1737973701446,0.562588,99158.0,99157.0,0.3025061]
[1737973703056,0.563588,99158.0,99157.0,0.3025061]
[1737973703551,0.201804,99150.0,99130.0,0.12390517]
[1737973703751,0.562604,99150.0,99149.0,0.36237044]
[1737973704754,0.564604,99150.0,99149.0,0.36237044]
[1737973705857,0.3628,99150.0,99140.0,0.39555909]
[1737973707254,0.3608,99150.0,99140.0,0.39555909]
[1737973707456,0.3618,99150.0,99140.0,0.39555909]
[1737973707656,0.201821,99142.0,99140.0,0.39555909]
[1737973708859,0.201821,99142.0,99140.0,0.39655909]
[1737973709554,0.3608,99150.0,99140.0,0.39655909]
[1737973709756,0.201823,99141.0,99140.0,0.39655909]
[1737973711259,0.201823,99141.0,99140.0,0.002]
[1737973712359,0.201823,99141.0,99140.0,0.001]
[1737973713461,0.201823,99141.0,99140.0,0.002]
[1737973714160,0.562623,99141.0,99140.0,0.002]
[1737973715765,0.562623,99141.0,99113.0,0.068]
[1737973715766,0.3707411,99141.0,99113.0,0.068]
[1737973715956,0.201849,99128.0,99127.0,0.24151137]
[1737973719062,0.21186111,99128.0,99127.0,0.24251137]
[1737973720368,0.21186111,99128.0,99127.0,0.001]
[1737973721273,0.21186111,99128.0,99105.0,0.0323]
[1737973721274,0.201893,99107.0,99105.0,0.0323]
[1737973721467,0.201893,99107.0,99103.0,0.00151351]
[1737973721468,0.201898,99104.0,99103.0,0.00151351]
[1737973723366,0.201902,99102.0,99101.0,0.24151137]
[1737973723568,0.562702,99102.0,99101.0,0.24151137]
[1737973723874,0.562702,99102.0,99100.0,0.1]
[1737973725472,0.57279816,99102.0,99100.0,0.1]
[1737973725867,0.562702,99102.0,99100.0,0.1]
[1737973726778,0.562702,99102.0,99100.0,0.101]
[1737973727080,0.3608,99102.0,99100.0,0.101]
[1737973728278,0.3608,99102.0,99100.0,0.11108706]
[1737973729578,0.3608,99102.0,99100.0,0.31299106]
[1737973738876,0.00015135,99116.0,99100.0,0.11108706]
[1737973739075,0.00015135,99116.0,99112.0,0.201881]
[1737973739285,0.20202635,99116.0,99112.0,0.201881]
[1737973739779,0.00015135,99116.0,99106.0,0.48602517]
[1737973739984,0.00015135,99116.0,99114.0,0.201877]
[1737973740185,0.00015135,99116.0,99115.0,0.0329]
[1737973740377,1e-08,99116.0,99115.0,0.4645]
[1737973741877,1e-08,99116.0,99115.0,0.43939437]
[1737973742776,1e-08,99116.0,99115.0,0.40369437]
[1737973743278,1e-08,99116.0,99115.0,0.01099437]
[1737973745188,1e-08,99116.0,99115.0,0.00999437]
[1737973745486,1e-08,99116.0,99114.0,0.201877]
[1737973746075,1e-08,99116.0,99114.0,0.21224674]
[1737973747680,0.20187401,99116.0,99114.0,0.21224674]
[1737973752085,1e-08,99116.0,99114.0,0.21224674]
[1737973752688,1e-08,99116.0,99115.0,0.3608]
[1737973754087,1e-08,99116.0,99115.0,0.581]
[1737973754387,0.12052877,99140.0,99115.0,0.631468]
[1737973754592,0.12052877,99140.0,99139.0,0.562627]
[1737973755583,0.12252877,99140.0,99139.0,0.562627]
[1737973755988,0.002,99140.0,99139.0,0.562627]
[1737973756184,0.12052877,99146.0,99145.0,0.201815]
[1737973757495,0.12352877,99146.0,99145.0,0.201815]
[1737973759093,0.005,99146.0,99145.0,0.202815]
[1737973761091,0.3608,99163.0,99162.0,0.20178]
[1737973761892,0.201769,99168.0,99166.0,0.20177]
[1737973763291,0.203769,99168.0,99166.0,0.20277]
[1737973763906,0.203769,99168.0,99166.0,0.21292659]
[1737973764404,0.209769,99168.0,99166.0,0.20277]
[1737973764804,0.008,99168.0,99166.0,0.20277]
[1737973765302,0.006,99168.0,99166.0,0.20277]
[1737973765902,0.006,99168.0,99167.0,0.3608]
[1737973766502,0.0703,99174.0,99167.0,0.3608]
[1737973766705,0.0703,99174.0,99173.0,0.201758]
[1737973768204,0.0733,99174.0,99173.0,0.201758]
[1737973769403,0.0733,99174.0,99173.0,0.202758]
[1737973770598,0.003,99174.0,99173.0,0.202758]
[1737973772609,0.003,99174.0,99173.0,0.201758]
[1737973773309,0.00015127,99177.0,99172.0,0.01009492]
[1737973773508,0.00015127,99177.0,99176.0,0.201752]
[1737973777003,0.00015127,99177.0,99176.0,0.21194808]
[1737973779608,0.00015127,99177.0,99176.0,0.201752]
[1737973779806,0.00015127,99177.0,99171.0,0.20176]
[1737973780010,0.20176,99172.0,99171.0,0.20176]
[1737973782713,0.201764,99170.0,99169.0,0.3608]
[1737973783911,0.201764,99170.0,99169.0,0.3618]
[1737973784111,0.201764,99170.0,99169.0,0.3628]
[1737973785620,0.201764,99170.0,99169.0,0.002]
[1737973788115,0.562564,99170.0,99169.0,0.002]
[1737973789913,0.57265458,99170.0,99169.0,0.002]
[1737973790224,0.201788,99158.0,99151.0,0.24151137]
[1737973792115,0.201788,99158.0,99157.0,0.00115127]
[1737973794820,0.201817,99144.0,99143.0,0.0015129]
[1737973795020,0.562617,99144.0,99143.0,0.0015129]
[1737973795328,0.562617,99144.0,99142.0,0.24151137]
[1737973795529,0.0711,99143.0,99142.0,0.24151137]
[1737973796720,0.0721,99143.0,99142.0,0.24151137]
[1737973796921,0.0731,99143.0,99142.0,0.24151137]
[1737973797726,0.0731,99143.0,99133.0,0.00015127]
[1737973797927,0.201824,99141.0,99134.0,0.3608]
[1737973798130,0.201824,99141.0,99135.0,0.201834]
[1737973798322,0.201824,99141.0,99134.0,0.3608]
[1737973798524,0.201824,99141.0,99137.0,0.201831]
[1737973799125,0.003,99143.0,99134.0,0.3608]
[1737973799432,0.201834,99136.0,99134.0,0.3608]
[1737973800617,0.0356,99135.0,99134.0,0.3608]
[1737973800818,0.201837,99134.0,99133.0,0.00015127]
[1737973801919,0.201874,99116.0,99115.0,0.24151137]
[1737973802118,0.562674,99116.0,99115.0,0.24151137]
[1737973803526,0.20189,99108.0,99107.0,0.30108736]
[1737973803721,0.56269,99108.0,99107.0,0.30108736]
[1737973805837,0.56269,99108.0,99107.0,0.30208736]
[1737973806337,0.20189,99108.0,99107.0,0.001]
[1737973806731,0.20189,99108.0,99107.0,0.002]
[1737973807129,0.56269,99108.0,99107.0,0.002]
[1737973807330,0.201901,99103.0,99100.0,0.1]
[1737973807832,0.001,99108.0,99106.0,0.201893]
[1737973808024,0.001,99108.0,99107.0,0.3608]
[1737973808230,0.201851,99128.0,99119.0,0.201867]
[1737973808432,0.3608,99138.0,99120.0,0.0684]
[1737973808635,0.32236577,99135.0,99124.0,0.201857]
[1737973809139,0.12052877,99135.0,99121.0,0.3608]
[1737973809344,0.15089005,99143.0,99142.0,0.201821]
[1737973809633,0.12001827,99151.0,99142.0,0.3608]
[1737973809833,0.12001827,99151.0,99150.0,0.3608]
[1737973811042,0.12201827,99151.0,99150.0,0.3618]
[1737973813030,0.12401827,99151.0,99150.0,0.3618]
[1737973813334,0.004,99151.0,99150.0,0.3618]
[1737973814343,0.004,99151.0,99150.0,0.37188676]
[1737973815341,0.201766,99170.0,99150.0,0.37188676]
[1737973815540,0.201766,99170.0,99159.0,0.562586]
[1737973816550,0.00315134,99160.0,99159.0,0.562586]
[1737973816737,0.00415134,99160.0,99159.0,0.562586]
[1737973817348,0.00415134,99160.0,99159.0,0.563586]
[1737973819049,0.00115134,99160.0,99159.0,0.563586]
[1737973819254,0.00415134,99160.0,99159.0,0.563586]
[1737973821445,0.00415134,99160.0,99159.0,0.202786]
[1737973822256,0.00415134,99160.0,99159.0,0.563586]
[1737973832663,0.00015134,99160.0,99159.0,0.563586]
[1737973834670,0.00015134,99160.0,99159.0,0.202786]
[1737973834968,0.00015134,99160.0,99159.0,0.563586]
[1737973835169,0.00015134,99160.0,99159.0,0.564586]
[1737973836369,0.0348,99176.0,99174.0,0.201754]
[1737973836574,0.201762,99171.0,99167.0,0.562568]
[1737973836766,0.201766,99170.0,99169.0,0.201762]
[1737973837764,0.0348,99176.0,99173.0,0.201757]
[1737973837966,0.236553,99176.0,99173.0,0.201757]
[1737973838165,0.201754,99175.0,99173.0,0.201757]
[1737973839175,0.0348,99176.0,99175.0,0.201754]
[1737973840376,0.20176,99172.0,99171.0,0.201762]
[1737973849886,0.0348,99176.0,99175.0,0.201754]
[1737973851882,0.0348,99176.0,99174.0,0.3608]
[1737973851883,0.201754,99175.0,99174.0,0.3608]
[1737973852084,0.201754,99175.0,99174.0,0.3063]
[1737973852387,0.201776,99164.0,99163.0,0.30108736]
[1737973853581,0.201776,99164.0,99163.0,0.24658736]
[1737973853782,0.3608,99167.0,99156.0,0.19336736]
[1737973853987,0.20179,99157.0,99156.0,0.19208736]
[1737973854177,0.56259,99157.0,99156.0,0.19208736]
[1737973854381,0.56259,99157.0,99156.0,0.13758736]
[1737973855095,0.201807,99149.0,99148.0,0.36226706]
[1737973857193,0.203807,99149.0,99148.0,0.36226706]
[1737973857494,0.002,99149.0,99148.0,0.36226706]
[1737973857700,0.002,99149.0,99148.0,0.75716706]
[1737973858194,0.18080518,99164.0,99163.0,0.201778]
[1737973858397,0.18080518,99164.0,99163.0,0.562578]
[1737973859487,0.18480518,99164.0,99163.0,0.562578]
[1737973859687,0.18480518,99164.0,99163.0,0.563578]
[1737973860188,0.18080518,99164.0,99163.0,0.564578]
[1737973861001,0.18080518,99164.0,99163.0,0.002]
[1737973861692,0.00993172,99164.0,99163.0,0.002]
[1737973861887,0.201776,99165.0,99163.0,0.002]
[1737973862499,0.201776,99165.0,99163.0,0.001]
[1737973862699,0.21196756,99165.0,99163.0,0.001]
[1737973862995,0.01019156,99165.0,99150.0,0.12390517]
[1737973863195,0.201797,99154.0,99150.0,0.12390517]
[1737973863398,0.201797,99154.0,99149.0,0.36226706]
[1737973863596,0.001,99164.0,99149.0,0.36226706]
[1737973863793,0.201804,99151.0,99149.0,0.36226706]
[1737973865099,0.201804,99151.0,99148.0,0.39622]
[1737973865300,0.201804,99151.0,99148.0,0.3949]
[1737973865594,0.201805,99150.0,99148.0,0.3949]